Cogmind - Beta 9.4 @@@ ROGUE MODE // 2020.01.09 @ 18:38:53 // Winter2019/RPGLIKE Player: Hermelin Result: Destroyed by H-88 Terminator with KE Penetrator Performance ------------- Evolutions (8) 4000 Regions Visited (31) 6200 Robots Destroyed (428) 2140 Value Destroyed (17949) 17949 Prototype IDs (79) 1580 Alien Tech Used (2) 400 Bonus (10453) 10453 TOTAL SCORE: 42722 Bonus ------- Triggered Max Security 1000 High Alert Combat Kills 3664 Follower Combat Kills 1547 Network Hubs Disabled 800 Aligned with FarCom 300 Met Data Miner 300 Met Imprinter 300 Triggered Deep Caves Wall 500 Exposed GOLEM Chamber 2500 Met Zhirov 300 Friendly Fire -758 Cogmind --------- Core Integrity 0/1700 Matter 400/400 Energy 1537/1550 System Corruption 4% Temperature Cool (4) Movement Hovering (102) Ox1 Location -2/Research Parts ------- > --- POWER (3) -------- Zionite Light DM Reactor Zionite Light DM Reactor Quantum Reactor > --- PROPULSION (6) --- Assembled Alloy Leg Cooled Gravmag System Cooled Gravmag System Cooled Gravmag System Improved Linear Gravjet Improved Linear Gravjet > --- UTILITY (12) ----- Experimental Heat Sink Assembled Nanovents Assembled Biocell Array Enhanced Optical Array Long-range Sensor Array Advanced Signal Interpreter Experimental Targeting Computer Experimental Targeting Computer Experimental Targeting Computer Improved System Backup Module GOLEM Unit > --- WEAPON (5) ------- Assembled Focal Cannon Assembled Focal Cannon Assembled Focal Cannon Phasing Sabre > --- INVENTORY (4) ---- Improved Antigrav System Stasis Canceller Advanced Force Field Z-bomb Delivery System Peak State ------------ > --- POWER ------------ Zionite Light DM Reactor Zionite Light DM Reactor Quantum Reactor > --- PROPULSION ------- Zionite Glidesys I Cooled Gravmag System Cooled Gravmag System Cooled Gravmag System Improved Linear Gravjet Improved Linear Gravjet > --- UTILITY ---------- Experimental Power Amplifier Assembled Nanovents Assembled Biocell Array Enhanced Optical Array Long-range Sensor Array Advanced Signal Interpreter Experimental Targeting Computer Experimental Targeting Computer Experimental Targeting Computer Improved System Backup Module GOLEM Unit > --- WEAPON ----------- Gamma Rifle Assembled Focal Cannon Assembled Focal Cannon Assembled Focal Cannon Z-bomb Delivery System > --- INVENTORY -------- Improved Antigrav System Experimental Heat Sink Stasis Canceller Advanced Force Field [Rating: 194] Favorites ----------- Power Zionite Light DM Reactor Engine Light Ion Engine Power Core Light Nuclear Core Reactor Zionite Light DM Reactor Propulsion Zionite Glidesys I Leg Assembled Alloy Leg Wheel Compact Wheel Hover Unit Zionite Glidesys I Flight Unit Flight Unit Utility Experimental Targeting Computer Device Long-range Sensor Array Storage Assembled Biocell Array Processor Experimental Targeting Computer Hackware Hacking Suite Protection Experimental Utility Shielding Weapon Assembled Focal Cannon Energy Gun Shock Rifle Energy Cannon Assembled Focal Cannon Ballistic Gun Battle Rifle Launcher Guided EMP Blaster Special Weapon Mining Laser Impact Weapon Impact Mace Slashing Weapon Phasing Sabre Build | -11 -10 -10 -9 -9 -9 -8 -8 -7 -7 -7 -7 -7 -6 -6 -6 -6 -6 -5 -5 -5 -5 -5 -4 -4 -4 -4 -4 -4 -3 -3 -2 ------- Run | Scr Mat Min Mat Min Exi Min Mat Fac Low Low Zio Dee Pro Fac Low Low Dat Pro Fac Upp Upp Zhi Pro Fac Ext Cet Arc Hub Res Tes Res Slots Evolved 22 | 2 . 1 5 1 . 2 3 2 . . . . . 1 . 1 . . 1 . . . 1 . . 2 . . . . . Power 2 | . . . 1 . . . . . . . . . . . . . . . . . . . . . . 1 . . . . . Propulsion 5 | 1 . . 1 1 . . 1 1 . . . . . . . . . . . . . . . . . . . . . . . Utility 11 | 1 . 1 1 . . 1 1 1 . . . . . 1 . 1 . . 1 . . . 1 . . 1 . . . . . Weapon 4 | . . . 2 . . 1 1 . . . . . . . . . . . . . . . . . . . . . . . . Parts Attached 155 | 6 2 5 20 3 1 3 15 14 4 2 3 24 1 8 . 1 . 2 5 3 . 6 5 2 2 1 2 3 5 7 . Power 17 | 1 . 2 4 2 . 1 . 2 . . . 2 . . . . . . . . . . . . . 1 . 2 . . . Engine 6 | 1 . 1 3 1 . . . . . . . . . . . . . . . . . . . . . . . . . . . Core 7 | . . 1 1 1 . 1 . 2 . . . . . . . . . . . . . . . . . . . 1 . . . Reactor 4 | . . . . . . . . . . . . 2 . . . . . . . . . . . . . 1 . 1 . . . Propulsion 35 | 2 1 2 7 1 . . 7 3 . . . 3 . 1 . . . . 2 . . 3 . 1 . . . 1 1 . . Treads . | . . . . . . . . . . . . . . . . . . . . . . . . . . . . . . . . Leg . | . . . . . . . . . . . . . . . . . . . . . . . . . . . . . . . . Wheel 2 | 2 . . . . . . . . . . . . . . . . . . . . . . . . . . . . . . . Hover 29 | . 1 . 5 1 . . 7 3 . . . 3 . 1 . . . . 2 . . 3 . 1 . . . 1 1 . . Flight 4 | . . 2 2 . . . . . . . . . . . . . . . . . . . . . . . . . . . . Utility 83 | 2 1 1 4 . . 1 6 8 4 2 2 17 1 6 . 1 . 2 3 3 . 3 5 1 2 . 2 . 3 3 . Device 56 | 1 . 1 1 . . 1 1 5 4 2 2 11 1 2 . 1 . 2 3 3 . . 4 1 2 . 2 . 3 3 . Storage 5 | . . . . . . . . . . . . 3 . . . . . . . . . 1 1 . . . . . . . . Processor 15 | 1 1 . 2 . . . 5 2 . . . . . 4 . . . . . . . . . . . . . . . . . Hackware 2 | . . . 1 . . . . 1 . . . . . . . . . . . . . . . . . . . . . . . Protection 5 | . . . . . . . . . . . . 3 . . . . . . . . . 2 . . . . . . . . . Artifact . | . . . . . . . . . . . . . . . . . . . . . . . . . . . . . . . . Weapon 20 | 1 . . 5 . 1 1 2 1 . . 1 2 . 1 . . . . . . . . . . . . . . 1 4 . Energy Gun 12 | 1 . . 4 . 1 1 1 . . . . 1 . . . . . . . . . . . . . . . . 1 2 . Energy Cannon . | . . . . . . . . . . . . . . . . . . . . . . . . . . . . . . . . Ballistic Gun 1 | . . . . . . . . . . . . 1 . . . . . . . . . . . . . . . . . . . Ballistic Cannon . | . . . . . . . . . . . . . . . . . . . . . . . . . . . . . . . . Launcher 3 | . . . . . . . 1 . . . . . . 1 . . . . . . . . . . . . . . . 1 . Special Weapon 1 | . . . 1 . . . . . . . . . . . . . . . . . . . . . . . . . . . . Impact Weapon 1 | . . . . . . . . 1 . . . . . . . . . . . . . . . . . . . . . . . Slashing Weapon 2 | . . . . . . . . . . . 1 . . . . . . . . . . . . . . . . . . 1 . Piercing Weapon . | . . . . . . . . . . . . . . . . . . . . . . . . . . . . . . . . Special Melee Weapon . | . . . . . . . . . . . . . . . . . . . . . . . . . . . . . . . . Unidentified Prototypes 25 | . . . 3 . . . . 2 . . . 7 . 2 . . . . . . . 5 1 . . . . 1 2 2 . Parts Lost 7 | . . 1 1 . . . . . . . . 1 1 . . . . . . . . . . . . . . . 1 . 2 Power 1 | . . 1 . . . . . . . . . . . . . . . . . . . . . . . . . . . . . Propulsion 2 | . . . . . . . . . . . . . . . . . . . . . . . . . . . . . 1 . 1 Utility 2 | . . . 1 . . . . . . . . 1 . . . . . . . . . . . . . . . . . . . Weapon 2 | . . . . . . . . . . . . . 1 . . . . . . . . . . . . . . . . . 1 Highest Loss Streak 1 | . . 1 1 . . . . . . . . 1 1 . . . . . . . . . . . . . . . 1 . 1 Average Slot Usage (%) 93 | . 93 95 92 100 95 92 93 94 95 95 95 94 95 92 90 90 90 90 90 91 91 90 91 91 91 91 92 92 93 96 95 Engine 1 | . 16 13 9 7 7 1 . . . . . . . . . . . . . . . . . . . . . . . . . Core 2 | . . . 5 7 7 12 11 10 10 10 10 1 . . . . . . . . . . . . . . . . . . . Reactor 5 | . . . . . . . . . . . . 8 10 9 9 9 9 9 8 8 8 8 8 8 8 10 11 11 11 11 11 Hover 25 | . 6 2 12 30 30 27 25 30 30 30 30 30 30 28 28 27 27 27 26 26 26 26 25 25 25 23 23 23 23 23 21 Device 11 | . 16 19 13 7 7 9 11 10 10 10 10 9 10 7 4 4 9 9 10 13 13 9 14 16 16 18 19 19 19 19 19 Storage 2 | . . . . . . . . . . . . 4 . 3 4 4 4 4 4 4 4 4 4 4 4 3 3 3 3 3 3 Processor 20 | . 16 15 13 23 23 20 22 20 20 20 20 20 20 19 23 22 22 22 21 21 21 21 20 20 20 19 19 19 19 19 19 Energy Gun 8 | . 16 15 17 23 18 20 16 15 15 15 15 14 9 2 . . . . . . . . . . . . . . . 3 2 Energy Cannon 4 | . . . . . . . . . . . . . 5 9 9 9 9 9 8 8 8 8 8 8 8 7 7 7 8 11 11 Launcher 2 | . . . . . . . 4 4 . . . . . 1 4 4 4 4 4 4 4 4 4 4 4 3 3 3 1 . . Slashing Weapon 2 | . . . . . . . . . . . 1 5 5 4 4 4 4 4 4 4 4 4 4 4 4 3 3 3 3 3 3 Naked Turns . | . . . . . . . . . . . . . . . . . . . . . . . . . . . . . . . . Heaviest Build 118 | 6 6 8 18 18 20 26 27 33 33 33 34 47 62 68 66 68 68 68 69 75 75 75 76 81 81 102 102 102 105 118 102 Greatest Support 118 | 26 26 8 32 38 38 38 65 78 78 78 78 100 100 103 103 103 103 103 103 103 103 118 118 118 118 118 118 118 118 109 114 Greatest Overweight (x) 1 | . . 1 1 . . . . . . . . . . . . . . . . . . . . . . . . . . 1 1 Average Overweight (x) . | . . . . . . . . . . . . . . . . . . . . . . . . . . . . . . . . Largest Inventory Capacity 4 | 1 2 2 2 2 2 2 2 3 3 3 3 4 4 4 4 4 4 4 4 4 4 4 4 4 4 4 4 4 4 4 4 Average Capacity 3 | . 1 2 2 2 2 2 2 2 3 3 3 3 4 4 4 4 4 4 4 4 4 4 4 4 4 4 4 4 4 4 4 Most Carried 4 | . 2 2 2 2 2 2 2 3 3 3 3 4 4 4 4 4 3 4 4 4 4 4 4 4 4 4 4 4 4 4 4 Average Carried 3 | . 1 1 1 1 1 1 1 2 3 3 3 3 3 3 4 3 3 3 3 3 4 3 4 4 4 4 4 4 3 3 4 Final Capacity 4 | 1 2 2 2 2 2 2 2 3 3 3 3 4 4 4 4 4 4 4 4 4 4 4 4 4 4 4 4 4 4 4 4 Final Carried 4 | . 2 2 2 2 2 1 2 3 3 3 3 4 4 4 4 3 3 4 3 4 4 4 4 4 4 4 4 4 4 4 4 Class Distribution -------------------- 70% | Scout 13% | Scavenger-Scout 11% | Generator-Scout Dominant Class ---------------- Mutant | -10/Materials Scout | -10/Mines Scavenger-Scout | -9/Materials Scavenger-Scout | -9/Mines Scavenger-Scout | -9/Exiles Scavenger-Scout | -8/Mines Scout | -8/Materials Scout | -7/Factory Scout | -7/Lower Caves Scout | -7/Lower Caves Scout | -7/Zion Scout | -7/Deep Caves Scout | -6/Proximity Caves Scout | -6/Factory Scout | -6/Lower Caves Scout | -6/Lower Caves Scout | -6/Data Miner Scout | -5/Proximity Caves Scout | -5/Factory Scout | -5/Upper Caves Scout | -5/Upper Caves Scout | -5/Zhirov Scout | -4/Proximity Caves Scout | -4/Factory Scout | -4/Extension Generator-Scout | -4/Cetus Generator-Scout | -4/Archives Generator-Scout | -4/Hub_04(d) Generator-Scout | -3/Research Generator-Scout | -3/Testing Generator-Scout | -2/Research Resources | -11 -10 -10 -9 -9 -9 -8 -8 -7 -7 -7 -7 -7 -6 -6 -6 -6 -6 -5 -5 -5 -5 -5 -4 -4 -4 -4 -4 -4 -3 -3 -2 ----------- Run | Scr Mat Min Mat Min Exi Min Mat Fac Low Low Zio Dee Pro Fac Low Low Dat Pro Fac Upp Upp Zhi Pro Fac Ext Cet Arc Hub Res Tes Res Matter Collected 2159 | 260 20 50 190 40 . 40 190 147 40 45 20 141 135 110 16 42 . 20 63 83 88 . 130 10 53 10 . 50 100 28 38 Remotely . | . . . . . . . . . . . . . . . . . . . . . . . . . . . . . . . . Salvage Created 18910 | 235 20 243 1821 352 . 81 799 1727 419 395 80 180 . 379 681 1743 . 258 1121 553 764 . 1346 535 933 794 137 1066 890 192 1166 Parts 975 | 12 4 19 119 28 . 2 64 88 19 25 10 . . 29 25 58 . 21 48 33 33 . 54 19 53 25 14 39 56 32 46 Haulers Intercepted 16 | . . . 4 . . . 3 3 . . . . . 1 . . . . 1 . . . . 1 . . . 2 1 . . Recyclers Shooed 2 | . . . 1 . . . . 1 . . . . . . . . . . . . . . . . . . . . . . . Parts Field Recycled . | . . . . . . . . . . . . . . . . . . . . . . . . . . . . . . . . Retrieved Matter . | . . . . . . . . . . . . . . . . . . . . . . . . . . . . . . . . Parts Self-Destructed 232 | . . . . . . . . . 10 11 . . . . 24 49 . 22 . 27 27 . 62 . . . . . . . . Prevented 37 | . . . . . . . . . 4 12 . . . . 1 9 . 1 . 3 7 . . . . . . . . . . Kills | -11 -10 -10 -9 -9 -9 -8 -8 -7 -7 -7 -7 -7 -6 -6 -6 -6 -6 -5 -5 -5 -5 -5 -4 -4 -4 -4 -4 -4 -3 -3 -2 ------- Run | Scr Mat Min Mat Min Exi Min Mat Fac Low Low Zio Dee Pro Fac Low Low Dat Pro Fac Upp Upp Zhi Pro Fac Ext Cet Arc Hub Res Tes Res Combat Hostiles Destroyed 326 | . . 7 31 10 . 3 22 28 8 10 1 9 . 7 14 27 . 7 14 15 16 . 23 4 10 11 4 9 13 10 13 Melee 4 | . . . . . . . . . . . 1 . . . 2 . . . . . . . 1 . . . . . . . . Guns 113 | . . 5 25 7 . 1 21 23 8 9 . 9 . . . . . . . . . . . . . . . . 2 2 1 Cannons 172 | . . . . . . . . . . . . . . 4 12 25 . 7 14 12 10 . 22 4 10 11 4 8 11 8 10 AOE 30 | . . 2 5 3 . 2 1 3 . . . . . 3 . 1 . . . 3 6 . . . . . . 1 . . . Classes Destroyed 21 | 3 1 2 4 1 . . 1 1 2 . 1 1 . . 1 1 . 1 1 . . . . . . . . . . . . Worker 13 | 2 . . 2 . . . 1 1 . . . . . 1 . . . . 1 . . . . . . . . 2 . . 3 Builder 9 | . . . 3 . . . . . . . . . . 1 . . . . 1 . . . . . . . . 3 1 . . Tunneler 7 | 4 . . . 1 . 1 . . . . . . . . . . . . . . . . . . . . . . . . 1 Hauler 16 | . . . 4 . . . 3 3 . . . . . 1 . . . . 1 . . . . 1 . . . 2 1 . . Recycler 9 | 1 . . 2 . . . . 3 . . . . . . . . . . . . . . . . 1 . . . . . 2 Carrier 1 | . . . . . . . . . . . . . . . . . . . 1 . . . . . . . . . . . . Operator 10 | . . . 1 . . . . 3 . . . . . . . . . . . . . . . 1 3 . . 1 1 . . Watcher 31 | . 1 . 4 . . . 4 7 . . . . . . . . . . 3 . . . . 2 3 1 . 2 2 . 2 Swarmer 75 | . . 3 10 6 . 3 6 5 3 3 . . . 3 6 4 . . . 7 4 . 2 . . . . 4 . 3 3 Saboteur 2 | . . . . . . . . . . . . . . . . 1 . . . . . . . . . . . . . 1 . Grunt 116 | . . 4 12 3 . . 7 13 3 5 . . . . 3 12 . 3 8 1 8 . 11 1 4 3 . . 4 6 5 Brawler 9 | . . . . . . . . . 1 . . . . . 2 3 . . . 1 2 . . . . . . . . . . Duelist 9 | . . . . 1 . . . . . . . . . . 1 5 . . . . 1 . 1 . . . . . . . . Sentry 60 | . . . 9 . . . 8 8 . . . . . 1 1 1 . . 4 2 1 . 2 3 6 . 4 4 5 . 1 Hunter 20 | . . . . . . . 1 1 . . . . . 2 . . . 1 1 2 . . 2 . . 4 . 1 2 . 3 Programmer 18 | . . . . . . . . 1 . 1 . . . 1 . 1 . 2 1 2 . . 4 . . 2 . . 2 . 1 Behemoth 3 | . . . . . . . . . . . . . . . 1 . . 1 . . . . 1 . . . . . . . . Cetus Guard 2 | . . . . . . . . . . . . . . . . . . . . . . . . . . 2 . . . . . Zionite 4 | . . . . . . . . . . . 4 . . . . . . . . . . . . . . . . . . . . Samaritan 1 | . . . . . . . . . . . . . . . . . . 1 . . . . . . . . . . . . . Assembled 9 | . . . . . . . . . . . . 9 . . . . . . . . . . . . . . . . . . . Thug 1 | . . . . . . . . . . 1 . . . . . . . . . . . . . . . . . . . . . Butcher 1 | . . . . . . . . . . . . . . . . . . . . . . . . . . 1 . . . . . Mutant 1 | . . . . . . . . . 1 . . . . . . . . . . . . . . . . . . . . . . Best Kill Streak 19 | 6 1 3 19 3 . 4 7 5 4 5 5 3 . 4 4 7 . 3 5 5 7 . 4 3 3 5 3 6 7 7 19 Combat Bots Only 13 | . . 3 8 3 . 3 5 4 4 5 1 3 . 4 4 7 . 3 3 5 7 . 4 2 2 5 3 4 6 7 13 Max Kills in Single Turn 4 | 1 1 1 3 2 . 3 2 4 1 1 2 1 . 2 1 1 . 1 1 1 2 . 1 2 2 1 1 2 2 1 2 Gunslinging 1 | . . . 1 1 . . . . . . . . . . . . . . . . . . . . . . . . . . . Exploded 3 | . . 1 2 2 . 2 1 3 . . . . . 2 . 1 . . . 1 2 . . . . . . 1 . . . Melee 1 | . . . . . . . . . . . 1 . . . 1 . . . . . . . 1 . . . . . . . . Uniques/NPCs Destroyed 1 | . . . . . . . . . . . 1 . . . . . . . . . . . . . . . . . . . . Imprinter (-7/Zion) Combat | -11 -10 -10 -9 -9 -9 -8 -8 -7 -7 -7 -7 -7 -6 -6 -6 -6 -6 -5 -5 -5 -5 -5 -4 -4 -4 -4 -4 -4 -3 -3 -2 -------- Run | Scr Mat Min Mat Min Exi Min Mat Fac Low Low Zio Dee Pro Fac Low Low Dat Pro Fac Upp Upp Zhi Pro Fac Ext Cet Arc Hub Res Tes Res Damage Taken 16966 | 32 72 204 1099 198 . 21 400 1039 170 549 283 979 301 206 638 351 . 445 743 367 647 . 1386 173 896 885 239 905 968 503 2267 Core 13583 | 28 57 164 912 157 . 15 322 822 137 438 227 773 245 168 521 276 . 359 587 294 514 . 1067 136 705 709 189 732 787 397 1845 Absorbed by Shields 3113 | . . . . . . . . . . . . 251 . . . . . . . 283 162 . 334 180 497 354 221 613 218 . . Redirected to Core 11630 | 8 44 127 639 132 . 15 278 657 109 369 201 735 191 127 419 276 . 314 563 241 474 . 998 118 663 602 175 583 640 382 1550 Core Remaining (%) 80 | 95 . 76 . . . 100 100 . . . . . 23 . . . . 100 . . . . 100 . . . . 44 . 84 . Volleys Fired 963 | 31 6 23 121 62 . 3 35 60 8 33 6 21 4 15 26 45 . 29 51 33 43 . 62 19 43 47 16 30 42 17 32 Largest 4 | 1 1 1 3 3 . 2 2 2 2 2 2 3 2 2 2 2 . 2 2 2 2 . 2 2 2 2 2 2 4 4 4 Hottest 150 | 40 40 40 145 145 . 100 100 100 100 100 100 135 50 50 50 50 . 50 50 50 50 . 50 50 50 50 50 50 150 150 150 Shots Fired 2029 | 31 6 23 195 96 . 11 124 182 29 72 15 53 5 24 50 86 . 58 102 60 75 . 124 38 87 94 32 60 124 66 107 Gun 903 | 31 6 23 195 96 . 11 124 182 29 72 15 53 2 . . . . . . . . . . . . . . . 18 15 31 Cannon 1100 | . . . . . . . . . . . . . 3 21 48 82 . 58 102 54 64 . 124 38 87 94 32 60 106 51 76 Launcher 26 | . . . . . . . . . . . . . . 3 2 4 . . . 6 11 . . . . . . . . . . Special . | . . . . . . . . . . . . . . . . . . . . . . . . . . . . . . . . Kinetic 4 | . . . . . . . . . . . . 2 2 . . . . . . . . . . . . . . . . . . Thermal 1276 | . . . 23 . . 5 54 62 13 7 3 9 3 21 48 82 . 58 102 54 64 . 124 38 87 94 32 60 106 51 76 Explosive . | . . . . . . . . . . . . . . . . . . . . . . . . . . . . . . . . Electromagnetic 746 | 31 6 23 172 96 . 6 70 120 16 65 12 39 . 3 2 4 . . . 6 11 . . . . . . . 18 15 31 Phasic 3 | . . . . . . . . . . . . 3 . . . . . . . . . . . . . . . . . . . Robot Hit Streak 104 | 6 6 7 8 10 . 3 21 44 15 22 20 17 4 23 34 49 . 33 24 38 98 . 104 25 37 25 12 52 60 26 30 Robot Miss Streak 7 | 2 1 2 7 6 . 3 3 2 1 1 1 2 1 . 1 1 . 2 2 1 . . 1 1 1 1 1 . 1 1 1 Penetration Max . | . . . . . . . . . . . . . . . . . . . . . . . . . . . . . . . . Secondary Targets 9 | . . . 5 1 . . . 1 . 1 1 . . . . . . . . . . . . . . . . . . . . Max Gunslinging Chain 1 | . . . 1 1 . . . 1 . 1 1 . . . . . . . . . . . . . . . . . . . . Autonomous 160 | . . . . . . 5 54 63 14 8 4 12 . . . . . . . . . . . . . . . . . . . Shots Hit Robots 1627 | 23 4 17 122 69 . 7 100 155 25 62 21 41 4 22 46 70 . 52 88 50 60 . 113 30 76 72 28 40 99 45 86 Core Hits 731 | 8 1 11 72 38 . 5 42 76 16 27 8 16 2 14 18 39 . 15 29 23 30 . 39 15 32 24 9 36 31 20 35 Critical Hits 6 | . . . 1 1 . . 1 2 . . . 1 . . . . . . . . . . . . . . . . . . . Critical Kills 1 | . . . . 1 . . . . . . . . . . . . . . . . . . . . . . . . . . . Critical Parts Destroyed 5 | . . . 1 . . . 1 2 . . . 1 . . . . . . . . . . . . . . . . . . . Melee Attacks 131 | . . . . . . . . . 1 . 8 30 4 37 8 4 . 1 1 . . . 7 4 . 9 . . 4 11 2 Impact 2 | . . . . . . . . . 1 . 1 . . . . . . . . . . . . . . . . . . . . Slashing 129 | . . . . . . . . . . . 7 30 4 37 8 4 . 1 1 . . . 7 4 . 9 . . 4 11 2 Piercing . | . . . . . . . . . . . . . . . . . . . . . . . . . . . . . . . . Sneak Attacks 10 | . . . . . . . . . . . 1 . . 2 7 . . . . . . . . . . . . . . . . Combat Hostiles . | . . . . . . . . . . . . . . . . . . . . . . . . . . . . . . . . Follow-up Attacks . | . . . . . . . . . . . . . . . . . . . . . . . . . . . . . . . . Damage Inflicted 63633 | 415 73 346 2620 1043 . 247 2422 3905 639 882 655 1201 135 1187 2557 3386 . 2544 4162 2603 3775 . 5308 1519 3754 3667 1409 3285 4172 2044 3678 Guns 12989 | 321 73 229 1821 947 . 163 2197 3438 537 784 169 648 27 . . . . . . . . . . . . . . . 497 400 738 Cannons 42495 | . . . . . . . . . . . . . 108 725 1719 2769 . 2380 4065 2382 2805 . 5101 1437 3730 3667 1409 2084 3675 1568 2871 Explosions 5000 | 94 . 117 799 96 . 84 210 449 102 98 . . . 138 95 281 . . . 221 970 . . 45 . . . 1201 . . . Melee 2847 | . . . . . . . . . . . 486 553 . 324 743 336 . 164 . . . . 207 . . . . . . 34 . Ramming 302 | . . . . . . . 15 18 . . . . . . . . . . 97 . . . . 37 24 . . . . 42 69 Kinetic 57 | . . . . . . . . . . . . 30 27 . . . . . . . . . . . . . . . . . . Thermal 49032 | 94 . 117 1045 96 . 194 1522 2014 456 275 61 263 108 768 1719 2769 . 2380 4065 2382 3162 . 5101 1437 3730 3667 1409 2084 3675 1568 2871 Explosive 45 | . . . . . . . . . . . . . . . . . . . . . . . . 45 . . . . . . . Electromagnetic 11317 | 321 73 229 1575 947 . 53 885 1873 183 607 108 322 . 95 95 281 . . . 221 613 . . . . . . 1201 497 400 738 Impact 111 | . . . . . . . . . . . 111 . . . . . . . . . . . . . . . . . . . . Slashing 2736 | . . . . . . . . . . . 375 553 . 324 743 336 . 164 . . . . 207 . . . . . . 34 . Piercing . | . . . . . . . . . . . . . . . . . . . . . . . . . . . . . . . . Phasic 33 | . . . . . . . . . . . . 33 . . . . . . . . . . . . . . . . . . . Highest Corruption 7 | . . . . . . . 2 2 2 4 . 4 . 2 . . . 1 3 3 . . 1 . 7 3 3 5 2 2 6 Average Corruption 2 | . . . . . . . 1 1 1 2 . 1 . 1 . . . 1 2 2 . . 1 . 3 2 1 2 1 1 4 Corruption Purged 32 | . . . . . . . . . 2 4 . 4 . 2 . . . 1 . 5 . . 1 . 7 . 3 . . 1 2 Effects 70 | . . . . . . . 6 3 5 10 . 3 . . . . . 1 6 6 . . . . 13 3 2 1 7 3 1 Message Errors 16 | . . . . . . . 3 1 1 . . . . . . . . . 1 4 . . . . 2 1 2 . 1 . . Matter Fused 11 | . . . . . . . . . . 3 . 2 . . . . . . 3 . . . . . 3 . . . . . . Heat Flow Errors 8 | . . . . . . . . . 1 2 . 1 . . . . . . 1 1 . . . . 1 . . 1 . . . Energy Discharges 15 | . . . . . . . 2 1 1 1 . . . . . . . 1 1 1 . . . . 4 1 . . . 1 1 Data Loss (minor) 9 | . . . . . . . 1 1 1 2 . . . . . . . . . . . . . . 2 . . . 1 1 . Misfires 1 | . . . . . . . . . . . . . . . . . . . . . . . . . 1 . . . . . . Targeting Errors 8 | . . . . . . . . . 1 1 . . . . . . . . . . . . . . . 1 . . 4 1 . Weapon Failures 2 | . . . . . . . . . . 1 . . . . . . . . . . . . . . . . . . 1 . . Overload Shots . | . . . . . . . . . . . . . . . . . . . . . . . . . . . . . . . . Overflow Damage 3700 | 1 . . 35 . . . 22 . . 30 228 258 53 69 160 85 . 230 295 255 285 . 357 67 168 441 11 195 175 180 100 Projectiles 2847 | . . . . . . . . . . . . . 53 15 131 49 . 230 273 255 181 . 338 67 168 441 11 180 175 180 100 Explosions 207 | 1 . . 35 . . . 22 . . 30 . . . . . . . . . . 104 . . . . . . 15 . . . Melee 646 | . . . . . . . . . . . 228 258 . 54 29 36 . . 22 . . . 19 . . . . . . . . Knockbacks 5 | . . . . . . . 1 . . . . . . . . . . . 3 . . . . . . . . . . . 1 Impact 5 | . . . . . . . 1 . . . . . . . . . . . 3 . . . . . . . . . . . 1 Kinetic . | . . . . . . . . . . . . . . . . . . . . . . . . . . . . . . . . Secondary . | . . . . . . . . . . . . . . . . . . . . . . . . . . . . . . . . Self-Inflicted Damage 712 | 32 . . 89 . . . 55 8 . . . . . . . . . . 47 . . . . 18 12 . . 396 . 21 34 Shots 11 | 2 . . 3 . . . 2 . . . . . . . . . . . . . . . . . . . . 4 . . . Rammed 13 | . . . . . . . 1 2 . . . . . . . . . . 4 . . . . 1 1 . . . . 1 3 Targets Rammed 13 | . . . . . . . 1 2 . . . . . . . . . . 4 . . . . 1 1 . . . . 1 3 Kicked . | . . . . . . . . . . . . . . . . . . . . . . . . . . . . . . . . Crushed . | . . . . . . . . . . . . . . . . . . . . . . . . . . . . . . . . Highest Temperature 290 | 12 10 80 290 180 . 4 16 42 219 246 7 248 6 . 37 8 . 2 251 101 8 . . . 115 . . 168 . . . Average Temperature 50 | 12 5 37 69 56 . 4 5 10 56 34 4 85 2 . 18 4 . 2 110 43 6 . . . 82 . . 99 . . . Received Heat Transfer 2779 | . 39 96 357 54 . . 99 267 18 99 67 160 87 18 90 81 . 78 189 20 136 . 247 23 89 133 12 36 101 57 126 Effects 1 | . . . . . . . . . . . . 1 . . . . . . . . . . . . . . . . . . . Energy Bleed 1 | . . . . . . . . . . . . 1 . . . . . . . . . . . . . . . . . . . Siege Activations . | . . . . . . . . . . . . . . . . . . . . . . . . . . . . . . . . Robots Corrupted 9 | . . . 2 . . . . 2 . 1 . . . . . 1 . . . . . . . . . . . 1 . . 2 Combat Hostiles 7 | . . . 1 . . . . 2 . 1 . . . . . 1 . . . . . . . . . . . . . . 2 Parts Fried 52 | 4 . . 6 . . . 3 14 1 4 . . . . . 1 . 1 . 2 2 . . . 2 . . 4 2 2 4 Impact Corruptions 4 | . . . . . . . . . . . 2 . . . . . . . 2 . . . . . . . . . . . . Robots Melted . | . . . . . . . . . . . . . . . . . . . . . . . . . . . . . . . . Combat Hostiles . | . . . . . . . . . . . . . . . . . . . . . . . . . . . . . . . . Parts Melted 30 | . . . 3 . . . 3 4 1 . . . . . 2 2 . 1 3 . . . . 2 1 . 2 2 2 . 2 Heat Transferred 29844 | 50 . 100 1200 50 . 198 1815 2459 544 272 74 333 50 475 950 1550 . 1250 2225 1200 1750 . 2650 800 1949 1875 725 1050 1925 825 1500 Parts Sabotaged 1 | . . . . . . . . . . . . . . . . . . . . . . . . . . . . . . 1 . Parts Stolen . | . . . . . . . . . . . . . . . . . . . . . . . . . . . . . . . . Parts Stripped . | . . . . . . . . . . . . . . . . . . . . . . . . . . . . . . . . Power Chain Reactions 25 | 2 . 2 7 2 . 1 1 3 1 1 . . . 1 . . . . . 1 3 . . . . . . . . . . Missiles Intercepted . | . . . . . . . . . . . . . . . . . . . . . . . . . . . . . . . . Alert | -11 -10 -10 -9 -9 -9 -8 -8 -7 -7 -7 -7 -7 -6 -6 -6 -6 -6 -5 -5 -5 -5 -5 -4 -4 -4 -4 -4 -4 -3 -3 -2 ------- Run | Scr Mat Min Mat Min Exi Min Mat Fac Low Low Zio Dee Pro Fac Low Low Dat Pro Fac Upp Upp Zhi Pro Fac Ext Cet Arc Hub Res Tes Res Peak Influence 2135 | 35 44 191 519 271 . 139 460 864 . . . . . 213 . . . . 1033 . . . . 358 906 762 242 2135 1551 1882 1615 Average Influence 335 | 10 29 116 295 138 . 114 230 285 . . . . . 39 . . . . 451 . . . . 187 228 582 164 504 1355 1741 1393 Maximum Alert Level 5 | . . . 2 1 . . 2 3 . . . . . 1 . . . . 3 . . . . 1 3 3 1 5 4 5 5 Low Security (%) 51 | 100 100 100 19 67 . 100 37 43 . . . . . 94 . . . . 39 . . . . 50 63 . 48 25 . . . Level 1 22 | . . . 59 32 . . 50 35 . . . . . 5 . . . . 19 . . . . 49 6 . 51 46 . . . Level 2 11 | . . . 20 . . . 12 9 . . . . . . . . . . 5 . . . . . 20 97 . . . . . Level 3 5 | . . . . . . . . 11 . . . . . . . . . . 35 . . . . . 8 2 . 14 . . . Level 4 6 | . . . . . . . . . . . . . . . . . . . . . . . . . . . . 3 100 . 83 Level 5 . | . . . . . . . . . . . . . . . . . . . . . . . . . . . . 9 . . 16 High Security . | . . . . . . . . . . . . . . . . . . . . . . . . . . . . . . . . Max Security 1 | . . . . . . . . . . . . . . . . . . . . . . . . . . . . . . 99 . Squads Dispatched 70 | . 1 . 4 . . . 1 7 . . . . . 8 . 1 . . 3 . 1 . 1 7 4 3 . 5 6 13 5 Investigation 26 | . 1 . 3 . . . . 3 . . . . . 4 . . . . 2 . . . 1 4 1 3 . 1 2 . 1 Extermination 4 | . . . . . . . . 1 . . . . . 1 . . . . . . . . . 1 . . . . 1 . . Reinforcement 18 | . . . 1 . . . 1 3 . . . . . 3 . . . . . . . . . 2 2 . . 3 1 . 2 Assault 19 | . . . . . . . . . . . . . . . . 1 . . 1 . 1 . . . 1 . . 1 1 13 . Garrison 3 | . . . . . . . . . . . . . . . . . . . . . . . . . . . . . 1 . 2 Intercept . | . . . . . . . . . . . . . . . . . . . . . . . . . . . . . . . . Construction Impeded 3 | . . . 1 . . . . . . . . . . . . . . . . . . . . 1 . . . . . . 1 Haulers Reinforced 4 | . . . . . . . . 2 . . . . . 1 . . . . . . . . . . . . . . . . 1 Stealth | -11 -10 -10 -9 -9 -9 -8 -8 -7 -7 -7 -7 -7 -6 -6 -6 -6 -6 -5 -5 -5 -5 -5 -4 -4 -4 -4 -4 -4 -3 -3 -2 --------- Run | Scr Mat Min Mat Min Exi Min Mat Fac Low Low Zio Dee Pro Fac Low Low Dat Pro Fac Upp Upp Zhi Pro Fac Ext Cet Arc Hub Res Tes Res Distress Signals 12 | . . . 3 . . . 1 . . . . . . . . . . . . . . . . . 2 1 . . 1 1 3 Communications Jammed . | . . . . . . . . . . . . . . . . . . . . . . . . . . . . . . . . Distress Signals . | . . . . . . . . . . . . . . . . . . . . . . . . . . . . . . . . Times Spotted 623 | . 24 7 44 15 . 4 28 47 6 12 18 51 7 12 12 23 . 7 23 20 22 . 26 14 29 26 4 33 27 56 26 Peak Tracking Total 42 | . 8 3 6 4 . 3 4 7 2 5 12 42 7 4 6 7 . 4 5 5 10 . 6 6 5 9 2 15 6 25 7 Tactical Retreats 44 | . 4 . 3 1 . . . 3 . 1 2 1 1 1 2 2 . . 1 3 1 . 1 1 1 1 . 2 4 6 2 Traps | -11 -10 -10 -9 -9 -9 -8 -8 -7 -7 -7 -7 -7 -6 -6 -6 -6 -6 -5 -5 -5 -5 -5 -4 -4 -4 -4 -4 -4 -3 -3 -2 ------- Run | Scr Mat Min Mat Min Exi Min Mat Fac Low Low Zio Dee Pro Fac Low Low Dat Pro Fac Upp Upp Zhi Pro Fac Ext Cet Arc Hub Res Tes Res Traps Triggered 16 | . 1 . . . . . 3 4 . . . . . . . . . . . . . . . . 4 . . 1 2 . 1 Indirectly . | . . . . . . . . . . . . . . . . . . . . . . . . . . . . . . . . Trap Hack Attempts . | . . . . . . . . . . . . . . . . . . . . . . . . . . . . . . . . Triggered . | . . . . . . . . . . . . . . . . . . . . . . . . . . . . . . . . Disarmed . | . . . . . . . . . . . . . . . . . . . . . . . . . . . . . . . . Reprogrammed 6 | . . . 6 . . . . . . . . . . . . . . . . . . . . . . . . . . . . Reused . | . . . . . . . . . . . . . . . . . . . . . . . . . . . . . . . . Traps Extracted . | . . . . . . . . . . . . . . . . . . . . . . . . . . . . . . . . Installed . | . . . . . . . . . . . . . . . . . . . . . . . . . . . . . . . . Triggered . | . . . . . . . . . . . . . . . . . . . . . . . . . . . . . . . . Machines | -11 -10 -10 -9 -9 -9 -8 -8 -7 -7 -7 -7 -7 -6 -6 -6 -6 -6 -5 -5 -5 -5 -5 -4 -4 -4 -4 -4 -4 -3 -3 -2 ---------- Run | Scr Mat Min Mat Min Exi Min Mat Fac Low Low Zio Dee Pro Fac Low Low Dat Pro Fac Upp Upp Zhi Pro Fac Ext Cet Arc Hub Res Tes Res Machines Disabled 85 | . 1 . 1 6 . 1 2 8 1 . . 4 . . . . . . . . . . 3 4 4 3 . 40 1 5 1 Max in Single Turn 16 | . 1 . 1 2 . 1 2 4 1 . . 1 . . . . . . . . . . 1 3 1 2 . 16 1 1 1 Garrison Access 7 | . . . . . . . 1 1 . . . . . 1 . . . . 1 . . . . . . . . 2 1 . . Network Hub 4 | . . . . . . . . . . . . . . . . . . . . . . . . . . . . 4 . . . Machines Sabotaged . | . . . . . . . . . . . . . . . . . . . . . . . . . . . . . . . . Garrisons Compromised . | . . . . . . . . . . . . . . . . . . . . . . . . . . . . . . . . Overloaded Fab Kills . | . . . . . . . . . . . . . . . . . . . . . . . . . . . . . . . . Fab Network Shutdowns 2 | . . . . . . . . 1 . . . . . . . . . . 1 . . . . . . . . . . . . Hacking | -11 -10 -10 -9 -9 -9 -8 -8 -7 -7 -7 -7 -7 -6 -6 -6 -6 -6 -5 -5 -5 -5 -5 -4 -4 -4 -4 -4 -4 -3 -3 -2 --------- Run | Scr Mat Min Mat Min Exi Min Mat Fac Low Low Zio Dee Pro Fac Low Low Dat Pro Fac Upp Upp Zhi Pro Fac Ext Cet Arc Hub Res Tes Res Machines Accessed 129 | . 8 . 12 . 4 . 14 19 1 . . . . 13 1 1 4 1 6 . 1 9 1 8 5 3 1 7 8 . 2 Terminals 79 | . 8 . 9 . . . 11 12 . . . . . 11 . . . 1 1 . . . 1 6 4 3 . 6 4 . 2 Fabricators 7 | . . . . . . . . 3 . . . . . 1 . . . . 1 . . . . 1 . . . . 1 . . Repair Stations 2 | . . . 1 . . . . . . . . . . . . . . . . . . . . 1 . . . . . . . Recycling Units 5 | . . . 1 . . . . 1 . . . . . . . . . . 1 . . . . . 1 . . . 1 . . Scanalyzers 7 | . . . 1 . . . 2 2 . . . . . . . . . . 1 . . . . . . . . . 1 . . Garrison Access 7 | . . . . . . . 1 1 . . . . . 1 . . . . 2 . . . . . . . . 1 1 . . Total Hacks 441 | . 30 . 46 . 6 . 42 50 1 . . . . 31 1 1 28 2 12 . 1 48 5 18 13 15 25 23 35 . 8 Successful 270 | . 12 . 24 . 6 . 23 24 1 . . . . 13 1 1 28 1 4 . 1 48 5 10 9 6 25 11 13 . 4 Failed 169 | . 18 . 22 . . . 19 26 . . . . . 18 . . . 1 8 . . . . 8 3 9 . 11 22 . 4 Catastrophic 43 | . 4 . 4 . . . 4 3 . . . . . 7 . . . . 3 . . . . 4 . 1 . 4 7 . 2 Database Lockouts 2 | . . . . . . . . . . . . . . . . . . . . . . . . . 1 . . 1 . . . Manual 148 | . 15 . 30 . 1 . 26 22 . . 4 . . 14 . . . 1 . . . . . 6 2 9 1 8 5 . 4 Terminals 262 | . 30 . 37 . . . 32 34 . . . . . 28 . . . 2 2 . . . 5 15 11 15 . 22 21 . 8 Fabricators 16 | . . . . . . . . 7 . . . . . 2 . . . . 1 . . . . 1 . . . . 5 . . Repair Stations 7 | . . . 5 . . . . . . . . . . . . . . . . . . . . 2 . . . . . . . Recycling Units 10 | . . . 2 . . . . 2 . . . . . . . . . . 2 . . . . . 2 . . . 2 . . Scanalyzers 21 | . . . 2 . . . 7 6 . . . . . . . . . . 1 . . . . . . . . . 5 . . Garrison Access 14 | . . . . . . . 3 1 . . . . . 1 . . . . 6 . . . . . . . . 1 2 . . Terminal Hacks 200 | . 10 . 12 . 6 . 10 11 1 . . . . 7 1 1 28 1 . . 1 48 5 7 6 5 25 8 5 . 2 Record 109 | . . . 1 . 5 . . 2 . . . . . 3 . . 11 1 . . . 36 5 2 3 5 25 5 5 . . Part Schematic 14 | . 1 . 1 . . . . 1 . . . . . . . . 7 . . . . 4 . . . . . . . . . Robot Schematic 7 | . . . . . . . . . . . . . . . . . 7 . . . . . . . . . . . . . . Robot Analysis 6 | . . . . . . . 1 . . . . . . 1 . . . . . . . 4 . . . . . . . . . Prototype ID Bank 11 | . 1 . 2 . . . . 1 . . . . . . . . 3 . . . . 4 . . . . . . . . . Open Door 5 | . . . . . . . . . 1 . . . . . 1 1 . . . . 1 . . . 1 . . . . . . Branch Access Points 7 | . 1 . 1 . . . 1 . . . . . . 1 . . . . . . . . . . 1 . . 1 . . 1 Emergency Access Points 1 | . 1 . . . . . . . . . . . . . . . . . . . . . . . . . . . . . . Terminal Index 4 | . . . 1 . . . 1 1 . . . . . . . . . . . . . . . . . . . 1 . . . Fabricator Index 1 | . . . . . . . 1 . . . . . . . . . . . . . . . . . . . . . . . . Alert Level 3 | . . . . . . . 2 . . . . . . . . . . . . . . . . 1 . . . . . . . Unreport Threat 17 | . 2 . 3 . . . 2 4 . . . . . 2 . . . . . . . . . 4 . . . . . . . Locate Traps 3 | . 2 . . . . . 1 . . . . . . . . . . . . . . . . . . . . . . . . Reprogram Traps 1 | . . . 1 . . . . . . . . . . . . . . . . . . . . . . . . . . . . Recall Investigation 2 | . . . 1 . . . . . . . . . . . . . . . . . . . . . . . . . . . 1 Recall Reinforcements 1 | . . . . . . . 1 . . . . . . . . . . . . . . . . . . . . . . . . Hauler Manifests 2 | . . . 1 . . . . 1 . . . . . . . . . . . . . . . . . . . . . . . Registered Components 2 | . 1 . . . . . . 1 . . . . . . . . . . . . . . . . . . . . . . . Zone Layout 3 | . 1 . . . . . . . . . . . . . . . . . . . . . . . 1 . . 1 . . . EX-Prototype ID Bank 1 | . . . . . 1 . . . . . . . . . . . . . . . . . . . . . . . . . . Fabricator Hacks 9 | . . . . . . . . 5 . . . . . 1 . . . . 1 . . . . . . . . . 2 . . Load Schematic 3 | . . . . . . . . 2 . . . . . . . . . . . . . . . . . . . . 1 . . Build 6 | . . . . . . . . 3 . . . . . 1 . . . . 1 . . . . . . . . . 1 . . Repair Station Hacks 4 | . . . 3 . . . . . . . . . . . . . . . . . . . . 1 . . . . . . . Scan Component 2 | . . . 1 . . . . . . . . . . . . . . . . . . . . 1 . . . . . . . Repair 1 | . . . 1 . . . . . . . . . . . . . . . . . . . . . . . . . . . . Refit 1 | . . . 1 . . . . . . . . . . . . . . . . . . . . . . . . . . . . Recycling Unit Hacks 4 | . . . . . . . . . . . . . . . . . . . 1 . . . . . 1 . . . 2 . . Report Inventory 3 | . . . . . . . . . . . . . . . . . . . 1 . . . . . 1 . . . 1 . . Retrieve Components 1 | . . . . . . . . . . . . . . . . . . . . . . . . . . . . . 1 . . Scanalyzer 14 | . . . 2 . . . 7 3 . . . . . . . . . . . . . . . . . . . . 2 . . Insert Component 8 | . . . 1 . . . 4 2 . . . . . . . . . . . . . . . . . . . . 1 . . Analyze 6 | . . . 1 . . . 3 1 . . . . . . . . . . . . . . . . . . . . 1 . . Garrison Access Hacks 7 | . . . . . . . 1 1 . . . . . 1 . . . . 2 . . . . . . . . 1 1 . . Seal Access 6 | . . . . . . . 1 1 . . . . . 1 . . . . 1 . . . . . . . . 1 1 . . Coupler Status 1 | . . . . . . . . . . . . . . . . . . . 1 . . . . . . . . . . . . Unauthorized Hacks 88 | . 8 . 15 . . . 13 13 . . . . . 12 . . . . . . . . . 6 4 3 . 5 5 . 4 Terminals 30 | . 2 . 5 . . . 5 4 . . . . . 4 . . . . . . . . . 2 2 1 . 2 1 . 2 Botnet 30 | . 2 . 5 . . . 5 4 . . . . . 4 . . . . . . . . . 2 2 1 . 2 1 . 2 Fabricators . | . . . . . . . . . . . . . . . . . . . . . . . . . . . . . . . . Repair Stations . | . . . . . . . . . . . . . . . . . . . . . . . . . . . . . . . . Recycling Units 2 | . . . 2 . . . . . . . . . . . . . . . . . . . . . . . . . . . . Monitor 1 | . . . 1 . . . . . . . . . . . . . . . . . . . . . . . . . . . . Mask 1 | . . . 1 . . . . . . . . . . . . . . . . . . . . . . . . . . . . Scanalyzers . | . . . . . . . . . . . . . . . . . . . . . . . . . . . . . . . . Garrison Access . | . . . . . . . . . . . . . . . . . . . . . . . . . . . . . . . . Data Cores Recovered 7 | . . . . . . . . 3 . . . . . . . . . . . . . . . 1 1 . . 1 1 . . Used 4 | . . . . . . . . 1 . . . . . . . . . . . . . . . 1 1 . . . 1 . . Hacking Detections 94 | . 8 . 10 . . . 13 17 . . . . . 12 . . . 1 5 . . . 1 7 5 3 . 6 4 . 2 Full Trace Events 27 | . 3 . 4 . . . 2 3 . . . . . 4 . . . . 2 . . . 1 4 . 3 . . 1 . . Feedback Events 4 | . . . 1 . . . . . . . . . . 2 . . . . 1 . . . . . . . . . . . . Corruption 3 | . . . . . . . . . . . . . . 2 . . . . 1 . . . . . . . . . . . . Hackware Fried 1 | . . . 1 . . . . . . . . . . . . . . . . . . . . . . . . . . . . Feedback Blocked . | . . . . . . . . . . . . . . . . . . . . . . . . . . . . . . . . Robot Schematics Acquired 7 | . . . . . . . . . . . . . . . . . 7 . . . . . . . . . . . . . . Robots Built 4 | . . . . . . . . 1 . . . . . . . . . . 2 . . . . . . . . . 1 . . Matter 756 | . . . . . . . . 153 . . . . . . . . . . 285 . . . . . . . . . 318 . . Time 276 | . . . . . . . . 40 . . . . . . . . . . 152 . . . . . . . . . 84 . . Total Robot Build Rating 17 | . . . . . . . . 1 . . . . . . . . . . 10 . . . . . . . . . 6 . . Part Schematics Acquired 20 | . 1 . 2 . . . 3 2 . . . . . . . . 7 . . . . 4 . . . . . . 1 . . Parts Built 4 | . . . . . . . . 3 . . . . . 1 . . . . . . . . . . . . . . . . . Matter 577 | . . . . . . . . 387 . . . . . 190 . . . . . . . . . . . . . . . . . Time 147 | . . . . . . . . 100 . . . . . 47 . . . . . . . . . . . . . . . . . Total Part Build Rating 16 | . . . . . . . . 11 . . . . . 5 . . . . . . . . . . . . . . . . . Parts Repaired 1 | . . . 1 . . . . . . . . . . . . . . . . . . . . . . . . . . . . Time 36 | . . . 36 . . . . . . . . . . . . . . . . . . . . . . . . . . . . Parts Recycled . | . . . . . . . . . . . . . . . . . . . . . . . . . . . . . . . . Recycled Matter . | . . . . . . . . . . . . . . . . . . . . . . . . . . . . . . . . Retrieved Matter . | . . . . . . . . . . . . . . . . . . . . . . . . . . . . . . . . Retrieved Components 2 | . . . . . . . . . . . . . . . . . . . . . . . . . . . . . 2 . . Parts Scanalyzed 7 | . . . 1 . . . 3 2 . . . . . . . . . . . . . . . . . . . . 1 . . Part Schematics Acquired 6 | . . . 1 . . . 3 1 . . . . . . . . . . . . . . . . . . . . 1 . . Parts Damaged . | . . . . . . . . . . . . . . . . . . . . . . . . . . . . . . . . Bothacking | -11 -10 -10 -9 -9 -9 -8 -8 -7 -7 -7 -7 -7 -6 -6 -6 -6 -6 -5 -5 -5 -5 -5 -4 -4 -4 -4 -4 -4 -3 -3 -2 ------------ Run | Scr Mat Min Mat Min Exi Min Mat Fac Low Low Zio Dee Pro Fac Low Low Dat Pro Fac Upp Upp Zhi Pro Fac Ext Cet Arc Hub Res Tes Res Used RIF Installer . | . . . . . . . . . . . . . . . . . . . . . . . . . . . . . . . . Robots Hacked . | . . . . . . . . . . . . . . . . . . . . . . . . . . . . . . . . Non-combat . | . . . . . . . . . . . . . . . . . . . . . . . . . . . . . . . . Combat . | . . . . . . . . . . . . . . . . . . . . . . . . . . . . . . . . Robot Hacks Applied . | . . . . . . . . . . . . . . . . . . . . . . . . . . . . . . . . Relay Couplers Released 1 | . . . . . . . . . . . . . . . . . . . . . . . . . . . . 1 . . . Machine Destruction 1 | . . . . . . . . . . . . . . . . . . . . . . . . . . . . 1 . . . Robots Rewired 27 | . . . . . . . . . . . . . . . . 2 . . . 1 2 . . . 22 . . . . . . Allies Hacked . | . . . . . . . . . . . . . . . . . . . . . . . . . . . . . . . . Hacks Repelled . | . . . . . . . . . . . . . . . . . . . . . . . . . . . . . . . . Allies | -11 -10 -10 -9 -9 -9 -8 -8 -7 -7 -7 -7 -7 -6 -6 -6 -6 -6 -5 -5 -5 -5 -5 -4 -4 -4 -4 -4 -4 -3 -3 -2 -------- Run | Scr Mat Min Mat Min Exi Min Mat Fac Low Low Zio Dee Pro Fac Low Low Dat Pro Fac Upp Upp Zhi Pro Fac Ext Cet Arc Hub Res Tes Res Total Allies 42 | . . 1 . 4 . . . 1 . . . . . . . 2 . 1 2 1 2 . . . 25 2 . . 1 . . Largest Group 24 | . . 1 . 4 3 3 2 1 . . . . . . . 2 . 1 3 2 3 3 3 . 24 7 . . 1 . . Highest-Rated Group 1124 | . . 31 . 71 40 40 24 7 . . . . . . . 59 . 94 176 123 152 133 133 . 1124 293 . . 60 . . Highest-Rated Ally 156 | . . 31 . 31 16 16 16 7 . . . . . . . 30 . 94 94 94 94 75 75 . 156 94 . . 60 . . Total Orders 20 | . . . . 2 . . . 5 . . . . . . . . . . 3 . . . . . . . . . . 10 . GOTO 2 | . . . . 1 . . . . . . . . . . . . . . 1 . . . . . . . . . . . . FOLLOW 2 | . . . . 1 . . . 1 . . . . . . . . . . . . . . . . . . . . . . . DROP 1 | . . . . . . . . 1 . . . . . . . . . . . . . . . . . . . . . . . PICKUP 2 | . . . . . . . . 2 . . . . . . . . . . . . . . . . . . . . . . . COLLECT 1 | . . . . . . . . 1 . . . . . . . . . . . . . . . . . . . . . . . EXPLORE 12 | . . . . . . . . . . . . . . . . . . . 2 . . . . . . . . . . 10 . Ally Attacks 232 | . . . . 18 . 7 15 . . . . . . . . . . 5 15 . 25 . 23 . 95 29 . . . . . Total Damage 6561 | . . . . 218 . 89 157 . . . . . . . . . . 259 611 . 652 . 529 . 3152 894 . . . . . Kills 36 | . . . . 3 . 2 2 . . . . . . . . . . 1 5 . 4 . 3 . 14 2 . . . . . Allies Corrupted . | . . . . . . . . . . . . . . . . . . . . . . . . . . . . . . . . Allies Melted . | . . . . . . . . . . . . . . . . . . . . . . . . . . . . . . . . Intel | -11 -10 -10 -9 -9 -9 -8 -8 -7 -7 -7 -7 -7 -6 -6 -6 -6 -6 -5 -5 -5 -5 -5 -4 -4 -4 -4 -4 -4 -3 -3 -2 ------- Run | Scr Mat Min Mat Min Exi Min Mat Fac Low Low Zio Dee Pro Fac Low Low Dat Pro Fac Upp Upp Zhi Pro Fac Ext Cet Arc Hub Res Tes Res Robot Analysis Total 6 | . . . . . . . 1 . . . . . . 1 . . . . . . . 4 . . . . . . . . . Derelict Logs Recovered 21 | . . 2 . 1 . . . . 2 2 2 . 1 . 2 2 . 2 . 2 1 . 2 . . . . . . . . Drone Launches 14 | . . . . . . . . . . . . . . . . . . . 2 . . . . . . . . . 12 . . Drone Recoveries . | . . . . . . . . . . . . . . . . . . . . . . . . . . . . . . . . Exploration | -11 -10 -10 -9 -9 -9 -8 -8 -7 -7 -7 -7 -7 -6 -6 -6 -6 -6 -5 -5 -5 -5 -5 -4 -4 -4 -4 -4 -4 -3 -3 -2 ------------- Run | Scr Mat Min Mat Min Exi Min Mat Fac Low Low Zio Dee Pro Fac Low Low Dat Pro Fac Upp Upp Zhi Pro Fac Ext Cet Arc Hub Res Tes Res Turns Passed 21523 | 134 506 456 768 1010 574 302 706 1530 647 483 466 2346 393 1188 579 677 34 531 762 1356 540 137 802 288 1491 675 774 381 523 237 227 Spaces Moved 24885 | 71 464 705 800 878 550 468 1024 2358 1025 712 925 954 476 1934 990 985 98 835 784 1098 902 232 1254 470 616 776 257 749 914 358 223 Core 6 | 3 . 3 . . . . . . . . . . . . . . . . . . . . . . . . . . . . . Treads . | . . . . . . . . . . . . . . . . . . . . . . . . . . . . . . . . Legs . | . . . . . . . . . . . . . . . . . . . . . . . . . . . . . . . . Wheels 232 | 68 164 . . . . . . . . . . . . . . . . . . . . . . . . . . . . . . Hover 23573 | . 300 36 392 878 550 468 1024 2358 1025 712 925 954 476 1934 990 985 98 835 784 1098 902 232 1254 470 616 776 257 749 914 358 223 Flight 1074 | . . 666 408 . . . . . . . . . . . . . . . . . . . . . . . . . . . . Fastest Speed 28 | 50 60 37 37 48 48 48 42 35 35 35 35 35 35 35 35 35 35 35 35 35 35 33 33 31 31 31 31 31 28 28 28 Average Speed 36 | 89 70 38 44 48 48 48 44 35 35 35 35 35 35 35 35 35 35 35 35 35 35 34 33 31 31 31 31 31 29 28 38 Slowest Speed 120 | 100 90 100 120 52 48 48 48 42 35 35 35 36 35 35 35 35 35 35 35 35 35 38 33 33 31 31 31 31 31 91 102 Overloaded Moves . | . . . . . . . . . . . . . . . . . . . . . . . . . . . . . . . . Propulsion Burnouts . | . . . . . . . . . . . . . . . . . . . . . . . . . . . . . . . . Robots Hopped 13 | . . 4 9 . . . . . . . . . . . . . . . . . . . . . . . . . . . . Cave-ins Triggered 1 | . . . . . . . . . . . . 1 . . . . . . . . . . . . . . . . . . . Teleports 1 | . . . . . . . . . . . . . . . . . . . . . . 1 . . . . . . . . . Exploration Rate (%) 75 | 5 94 97 78 99 94 91 94 62 97 83 91 87 70 52 96 97 70 95 27 96 86 63 99 15 79 95 100 88 26 64 10 Regions Visited 31 Branch Regions 22 Pre-discovered Areas 11 | . . . . 1 . . . . . . 3 . . . . . 1 . . 1 1 3 1 . . . . . . . . Known Exits Taken 30 | . 1 1 1 1 1 1 1 1 1 1 1 1 1 1 1 1 1 1 1 1 1 1 1 1 1 1 1 1 1 1 . Unknown Exits Taken 1 | 1 . . . . . . . . . . . . . . . . . . . . . . . . . . . . . . . Scrap Searched 25 | . . 1 . 1 . 1 . . 3 2 3 . . . 2 4 . 2 . 2 . . 4 . . . . . . . . Spaces Dug 67 | . . . . . . . . . . . . 14 4 32 . . . . 1 . . . . 4 . . . . 4 6 2 Terrain Destroyed 925 | 3 . 9 31 2 . 5 27 12 3 2 . 14 5 37 10 17 . 6 13 10 29 . 15 15 5 7 2 588 24 20 14 Melee 67 | . . . . . . . . . . . . 14 4 32 . . . . 1 . . . . 4 . . . . 4 6 2 Projectile 158 | . . . . . . . 8 3 1 1 . . 1 3 10 17 . 6 12 6 5 . 15 3 5 7 2 7 20 14 12 AOE 700 | 3 . 9 31 2 . 5 19 9 2 1 . . . 2 . . . . . 4 24 . . 8 . . . 581 . . . Actions | -11 -10 -10 -9 -9 -9 -8 -8 -7 -7 -7 -7 -7 -6 -6 -6 -6 -6 -5 -5 -5 -5 -5 -4 -4 -4 -4 -4 -4 -3 -3 -2 --------- Run | Scr Mat Min Mat Min Exi Min Mat Fac Low Low Zio Dee Pro Fac Low Low Dat Pro Fac Upp Upp Zhi Pro Fac Ext Cet Arc Hub Res Tes Res Total 35209 | 107 636 860 1009 1382 861 538 1199 2918 1293 878 1041 2875 691 2365 1159 1224 97 1012 1167 2007 1050 289 1507 565 1828 1102 917 836 1071 435 290 Wait 7927 | . 160 124 25 385 304 62 81 421 248 108 86 1813 203 348 78 145 . 110 285 849 45 34 107 58 881 235 625 51 30 13 13 Move 24828 | 70 463 696 782 877 549 467 1023 2357 1024 711 924 952 475 1933 989 984 97 834 783 1097 901 231 1253 469 615 775 256 748 913 357 223 Hop 12 | . . 4 8 . . . . . . . . . . . . . . . . . . . . . . . . . . . . Pick Up 52 | . 2 1 7 1 3 1 5 5 . . . 5 2 5 . . . 1 1 1 . 5 1 2 . . . . 3 1 . Fast Attach 67 | 6 2 4 13 . . 1 8 4 . . 1 10 . 2 . . . . 1 . . 4 2 . . 1 . 3 2 3 . Attach 20 | . . 1 2 1 1 2 2 1 . . . 2 1 . . 1 . . 2 . . 1 . . . . . . 1 2 . Detach 4 | . . . 1 . . . 2 . . . . . . . . . . . . . . . . . . . . . . 1 . Swap 70 | . . . 5 2 . . 5 9 4 2 2 12 . 6 . . . 2 2 3 . 3 3 2 2 . 2 . 2 2 . Drop 105 | . 3 2 17 2 4 1 11 9 . . 1 15 2 9 . . . . 3 . . 7 3 3 . 1 . 2 5 5 . Fire 963 | 31 6 23 121 62 . 3 35 60 8 33 6 21 4 15 26 45 . 29 51 33 43 . 62 19 43 47 16 30 42 17 32 Melee 131 | . . . . . . . . . 1 . 8 30 4 37 8 4 . 1 1 . . . 7 4 . 9 . . 4 11 2 Ram 13 | . . . . . . . 1 2 . . . . . . . . . . 4 . . . . 1 1 . . . . 1 3 Kick . | . . . . . . . . . . . . . . . . . . . . . . . . . . . . . . . . Crush . | . . . . . . . . . . . . . . . . . . . . . . . . . . . . . . . . Escape Stasis 3 | . . . . . . . . . . . . 1 . . . . . . . . . . . . 2 . . . . . . Rewire 319 | . . . . 10 . . . . . . . . . . 22 9 . . . 7 27 4 . . 240 . . . . . . Trap . | . . . . . . . . . . . . . . . . . . . . . . . . . . . . . . . . Miscellaneous 695 | . . 5 28 42 . 1 26 50 8 24 13 14 . 10 36 36 . 35 34 17 34 . 69 7 44 34 18 2 69 22 17 Route ------- -11/Scrapyard -10/Materials (discovered 4 exits: *Mat x3 / *Min) -10/Mines (discovered 2 exits: *Mat x2) -9/Materials (discovered 4 exits: *Mat x3 / *Min) -9/Mines (discovered 4 exits: *Mat x2 / *Exi / *Zio) -9/Exiles (discovered 2 exits: *Min x2) -8/Mines (discovered 2 exits: *Mat x2) -8/Materials (discovered 3 exits: *Fac x3) -7/Factory (discovered 6 exits: *Fac x2 / *Sto x2 / *Low x2) -7/Lower Caves -7/Lower Caves (discovered 2 exits: *Fac / *Zio) -7/Zion (discovered 2 exits: *Dee / *Pro) -7/Deep Caves -6/Proximity Caves -6/Factory (discovered 3 exits: *Fac / *Low x2) -6/Lower Caves -6/Lower Caves (discovered 2 exits: *Fac / *Dat) -6/Data Miner -5/Proximity Caves -5/Factory (discovered 3 exits: Fac / *Upp x2) -5/Upper Caves -5/Upper Caves -5/Zhirov -4/Proximity Caves -4/Factory -4/Extension (discovered 2 exits: *Res / *Cet) -4/Cetus (discovered 3 exits: *Res x2 / *Arc) -4/Archives (discovered 3 exits: *Res / *Hub x2) -4/Hub_04(d) (discovered 3 exits: *Res x3) -3/Research (discovered 3 exits: Res / *Tes x2) -3/Testing -2/Research (discovered 2 exits: Qua x2) History --------- Turn | Location | Event 7 | -11/Scrapyard | Upgraded with Propulsion slot (x1) 7 | -11/Scrapyard | Upgraded with Utility slot (x1) 16 | -11/Scrapyard | Discovered new exit (range 15) 135 | -11/Scrapyard | Entered Materials 228 | -10/Materials | Discovered new exit (range 8) 317 | -10/Materials | Build established: Mutant 318 | -10/Materials | Identified exit to Materials 468 | -10/Materials | Identified exit to Mines 491 | -10/Materials | Discovered exit to Materials (range 17) 560 | -10/Materials | Discovered exit to Materials (range 10) 641 | -10/Materials | Entered Mines 742 | -10/Mines | Build established: Scout 772 | -10/Mines | Learned Materials stockpile data 837 | -10/Mines | Reached level 2 894 | -10/Mines | Learned Materials garrison access intel 940 | -10/Mines | Discovered exit to Materials (range 8) 961 | -10/Mines | Upgraded with Utility slot (x1) 966 | -10/Mines | Discovered exit to Materials (range 15) 976 | -10/Mines | Received a Mining Laser from a helpful Derelict 1097 | -10/Mines | Entered Materials 1099 | -9/Materials | Reached level 3 1099 | -9/Materials | Upgraded with Power slot (x1) 1099 | -9/Materials | Upgraded with Propulsion slot (x1) 1099 | -9/Materials | Upgraded with Weapon slot (x1) 1201 | -9/Materials | Discovered new exit (range 5) 1206 | -9/Materials | Identified exit to Materials 1264 | -9/Materials | Build established: Scavenger-Scout 1279 | -9/Materials | Repaired Broken Flight Unit 1368 | -9/Materials | Core integrity fell below 50% 1369 | -9/Materials | Reached level 4 1387 | -9/Materials | Upgraded with Utility slot (x1) 1501 | -9/Materials | Discovered exit to Materials (range 10) 1614 | -9/Materials | Reached level 5 1618 | -9/Materials | Upgraded with Weapon slot (x1) 1639 | -9/Materials | Discovered new exit (range 19) 1652 | -9/Materials | Destroyed 8 combat bots 1678 | -9/Materials | Identified exit to Mines 1747 | -9/Materials | Core integrity fell below 20% 1806 | -9/Materials | Discovered exit to Materials (range 19) 1810 | -9/Materials | Hacking Suite fried by hacking feedback 1865 | -9/Materials | Entered Mines 1867 | -9/Mines | Reached level 6 1869 | -9/Mines | Upgraded with Propulsion slot (x1) 1962 | -9/Mines | Assembled infested the area 2118 | -9/Mines | A Derelict revealed a hidden shortcut to a safe place 2121 | -9/Mines | Learned 4 Materials zone layouts 2123 | -9/Mines | Identified exit to Zion 2152 | -9/Mines | Discovered exit to Materials (range 8) 2442 | -9/Mines | Discovered exit to Materials (range 6) 2548 | -9/Mines | Assisted by bots powering up and referring to "LRC-V3" 2667 | -9/Mines | Reached level 7 2702 | -9/Mines | Escorted by a lone wolf Derelict 2722 | -9/Mines | Learned location of Storage (-7) 2829 | -9/Mines | Discovered new exit (range 5) 2830 | -9/Mines | Identified exit to Exiles 2875 | -9/Mines | Entered Exiles 2875 | -9/Exiles | Accompanied by 4 allies 2887 | -9/Exiles | Discovered new exit (range 15) 2893 | -9/Exiles | Identified exit to Mines 2914 | -9/Exiles | Met 8R-AWN 2935 | -9/Exiles | Met EX-HEX 2964 | -9/Exiles | Met EX-DEC 2980 | -9/Exiles | Visited The Gauntlet 3044 | -9/Exiles | Met EX-BIN 3089 | -9/Exiles | Reached level 8 3089 | -9/Exiles | Aligned with FarCom system 3090 | -9/Exiles | Given EX-Vault access code 3102 | -9/Exiles | Opened EX-Vault 3123 | -9/Exiles | Warned to stay clear of 0b10 Research branches 3143 | -9/Exiles | Found AWS/Thermal 3277 | -9/Exiles | Discovered exit to Mines (range 12) 3449 | -9/Exiles | Left Exiles lab with AWS/Thermal 3449 | -9/Exiles | Entered Mines 3449 | -8/Mines | Accompanied by 3 allies 3449 | -8/Mines | Upgraded with Weapon slot (x1) 3565 | -8/Mines | Discovered exit to Materials (range 13) 3610 | -8/Mines | Upgraded with Utility slot (x1) 3668 | -8/Mines | Discovered exit to Materials (range 6) 3751 | -8/Mines | Entered Materials 3751 | -8/Materials | Accompanied by 2 allies 3753 | -8/Materials | Loaded intel: 1 garrison access location 3753 | -8/Materials | Reached level 9 3804 | -8/Materials | Upgraded with Utility slot (x1) 3826 | -8/Materials | Reached level 10 3829 | -8/Materials | Upgraded with Weapon slot (x1) 4010 | -8/Materials | Discovered new exit (range 8) 4013 | -8/Materials | Identified exit to Factory 4127 | -8/Materials | Reached level 11 4128 | -8/Materials | Upgraded with Propulsion slot (x1) 4151 | -8/Materials | Discovered exit to Factory (range 12) 4297 | -8/Materials | Build established: Scout 4399 | -8/Materials | Discovered exit to Factory (range 20) 4457 | -8/Materials | Entered Factory 4459 | -7/Factory | Reached level 12 4484 | -7/Factory | Reached level 13 4541 | -7/Factory | Upgraded with Propulsion slot (x1) 4549 | -7/Factory | Discovered new exit (range 4) 4550 | -7/Factory | Identified exit to Storage 4662 | -7/Factory | Discovered new exit (range 15) 4679 | -7/Factory | Identified exit to Lower Caves 4753 | -7/Factory | Discovered exit to Lower Caves (range 6) 4831 | -7/Factory | Reached level 14 5020 | -7/Factory | Discovered new exit (range 20) 5187 | -7/Factory | Fabricated Recalibrator (x2) 5338 | -7/Factory | Fabricated Aerolev Unit (x1) 5386 | -7/Factory | Identified exit to Factory 5523 | -7/Factory | Fabricated R-06 Scavenger (x1) 5668 | -7/Factory | Local fabrication network quarantined 5742 | -7/Factory | Reached level 15 5752 | -7/Factory | Upgraded with Utility slot (x1) 5857 | -7/Factory | Discovered exit to Factory (range 16) 5874 | -7/Factory | Discovered exit to Storage (range 24) 5987 | -7/Factory | Entered Lower Caves 6259 | -7/Lower Caves | Attacked by a delusional Derelict stockpiling parts 6307 | -7/Lower Caves | Encountered a Warlord checkpoint 6408 | -7/Lower Caves | Learned 4 Factory zone layouts 6457 | -7/Lower Caves | Spotted B-75 Beast 6500 | -7/Lower Caves | Learned Factory terminal intel 6526 | -7/Lower Caves | Discovered new exit (range 6) 6528 | -7/Lower Caves | Identified exit to Lower Caves 6634 | -7/Lower Caves | Entered another Lower Caves area 6642 | -7/Lower Caves | Discovered exit to Factory (range 22) 6684 | -7/Lower Caves | Reached level 16 6706 | -7/Lower Caves | Learned 12 Factory zone layouts 6722 | -7/Lower Caves | Encountered a Warlord checkpoint 7117 | -7/Lower Caves | Entered Zion 7137 | -7/Zion | Given A8's code to call for help 7148 | -7/Zion | Discovered new exit (range 12) 7152 | -7/Zion | Identified exit to Proximity Caves 7166 | -7/Zion | Learned location of Warlord (-4) 7283 | -7/Zion | Learned location of Extension (-4) 7290 | -7/Zion | Learned Factory garrison access intel 7297 | -7/Zion | Visited the Megawrench Repair Shop 7365 | -7/Zion | Acquired unknown access codes intercepted by a Zionite 7402 | -7/Zion | Received a hallucinogenic algorithm 7454 | -7/Zion | Opened final containment barrier to the Deep Caves 7460 | -7/Zion | Discovered new exit (range 3) 7460 | -7/Zion | Saw the warning signs outside the Deep Caves entrance 7461 | -7/Zion | Identified exit to Deep Caves 7493 | -7/Zion | Rebuked by Imprinter 7507 | -7/Zion | Attacked by Zionites 7556 | -7/Zion | Destroyed Imprinter 7559 | -7/Zion | Extracted access codes from Imprinter's data core 7583 | -7/Zion | Entered Deep Caves 7884 | -7/Deep Caves | Z-Facility disabled 8205 | -7/Deep Caves | Crushed by falling debris 8218 | -7/Deep Caves | Found Prototype Protection 8218 | -7/Deep Caves | Identified Zio. Weapon Casing 8221 | -7/Deep Caves | Found Prototype Protection 8221 | -7/Deep Caves | Identified Zio. Heavy Carapace 8243 | -7/Deep Caves | Discovered new exit (range 16) 8248 | -7/Deep Caves | Identified exit to Proximity Caves 9877 | -7/Deep Caves | Spotted as-27035 9890 | -7/Deep Caves | Exposed GOLEM chamber 9897 | -7/Deep Caves | Triggered Deep Caves wall 9906 | -7/Deep Caves | Found GOLEM Unit 9909 | -7/Deep Caves | Spotted AS-67513 9916 | -7/Deep Caves | Core integrity fell below 50% 9929 | -7/Deep Caves | Entered Proximity Caves 9931 | -6/Proximity Caves | Reached level 17 10208 | -6/Proximity Caves | Learned Factory trap positions 10285 | -6/Proximity Caves | Spotted B-75 Beast 10318 | -6/Proximity Caves | Discovered exit to Factory (range 11) 10322 | -6/Proximity Caves | Entered Factory 10323 | -6/Factory | Core integrity fell below 50% 10324 | -6/Factory | Loaded intel: 105 trap records 10324 | -6/Factory | Reached level 18 10324 | -6/Factory | Upgraded with Utility slot (x1) 10325 | -6/Factory | Loaded intel: 20 terminal locations 10326 | -6/Factory | Loaded intel: 4 garrison access locations 10490 | -6/Factory | Discovered new exit (range 23) 10499 | -6/Factory | Identified exit to Factory 11083 | -6/Factory | Fabricated Cloaking Device (x1) 11259 | -6/Factory | Found Prototype Processor 11260 | -6/Factory | Identified Exp. Targeting Computer 11261 | -6/Factory | Found Exp. Targeting Computer 11264 | -6/Factory | Found Exp. Targeting Computer 11436 | -6/Factory | Identified exit to Lower Caves 11510 | -6/Factory | Entered Lower Caves 11564 | -6/Lower Caves | Learned Factory stockpile data 11766 | -6/Lower Caves | Reached level 19 11966 | -6/Lower Caves | Discovered new exit (range 8) 11968 | -6/Lower Caves | Identified exit to Lower Caves 11977 | -6/Lower Caves | Spotted B-75 Beast 12009 | -6/Lower Caves | Destroyed B-75 Beast 12089 | -6/Lower Caves | Entered another Lower Caves area 12119 | -6/Lower Caves | Attracted the attention of an 0b10 outpost 12158 | -6/Lower Caves | Destroyed 7 combat bots 12247 | -6/Lower Caves | Learned Factory trap positions 12278 | -6/Lower Caves | Discovered exit to Factory (range 11) 12608 | -6/Lower Caves | P-60 Hacker assimilated allied Fighter 5a 12684 | -6/Lower Caves | Reached level 20 12690 | -6/Lower Caves | Upgraded with Utility slot (x1) 12705 | -6/Lower Caves | Discovered new exit (range 22) 12725 | -6/Lower Caves | Identified exit to Data Miner 12766 | -6/Lower Caves | Entered Data Miner 12766 | -6/Data Miner | Discovered new exit (range 6) 12768 | -6/Data Miner | Identified exit to Proximity Caves 12771 | -6/Data Miner | Met Data Miner 12780 | -6/Data Miner | Learned location of Section 7 (-2) 12780 | -6/Data Miner | Acquired the access code to Warlord's prototype stash 12787 | -6/Data Miner | Received God Mode back door access code from Data Miner 12800 | -6/Data Miner | Entered Proximity Caves 12877 | -5/Proximity Caves | Spotted B-75 Beast 12879 | -5/Proximity Caves | Escorted by Enhanced Grunt 12895 | -5/Proximity Caves | Destroyed B-75 Beast 12981 | -5/Proximity Caves | Learned 8 Factory zone layouts 13161 | -5/Proximity Caves | Reached level 21 13331 | -5/Proximity Caves | Entered Factory 13331 | -5/Factory | Accompanied by 1 ally 13332 | -5/Factory | Identified exit to Upper Caves 13333 | -5/Factory | Identified exit to Factory 13334 | -5/Factory | Loaded intel: 87 trap records 13587 | -5/Factory | Fabricated H-66 Slayer? 13659 | -5/Factory | Reached level 22 13826 | -5/Factory | Local fabrication network quarantined 13840 | -5/Factory | Discovered exit to Upper Caves (range 18) 13868 | -5/Factory | Upgraded with Utility slot (x1) 13931 | -5/Factory | First assault squad dispatched 13951 | -5/Factory | Incoming assault squad redirected 14093 | -5/Factory | Entered Upper Caves 14093 | -5/Upper Caves | Accompanied by 1 ally 14692 | -5/Upper Caves | Attracted the attention of an 0b10 checkpoint 14736 | -5/Upper Caves | Learned Factory terminal intel 14753 | -5/Upper Caves | Attracted the attention of an 0b10 outpost 14844 | -5/Upper Caves | Discovered new exit (range 12) 14848 | -5/Upper Caves | Identified exit to Upper Caves 14901 | -5/Upper Caves | Reached level 23 15449 | -5/Upper Caves | Entered another Upper Caves area 15449 | -5/Upper Caves | Accompanied by 2 allies 15497 | -5/Upper Caves | Encountered a Warlord checkpoint 15553 | -5/Upper Caves | Spotted B-75 Beast 15585 | -5/Upper Caves | Allies destroyed B-75 Beast 15640 | -5/Upper Caves | Discovered new exit (range 10) 15643 | -5/Upper Caves | Identified exit to Zhirov 15678 | -5/Upper Caves | Attracted the attention of an 0b10 outpost 15746 | -5/Upper Caves | Destroyed 7 combat bots 15989 | -5/Upper Caves | Entered Zhirov 15989 | -5/Zhirov | Accompanied by 3 allies 15989 | -5/Zhirov | Discovered new exit (range 3) 15990 | -5/Zhirov | Identified exit to Proximity Caves 15997 | -5/Zhirov | Met Zhirov 16008 | -5/Zhirov | Learned location of Quarantine (-2) 16008 | -5/Zhirov | Learned location of Testing (-3) 16008 | -5/Zhirov | Learned location of Command (-1) 16016 | -5/Zhirov | Zhirov requested help retrieving the SGEMP Prototype 16025 | -5/Zhirov | Found Alien Artifact 16026 | -5/Zhirov | Identified Integrated Dissipator 16026 | -5/Zhirov | Installed Integrated Dissipator, increased core heat dissipation (+2%) 16064 | -5/Zhirov | Found Alien Artifact 16065 | -5/Zhirov | Identified Transdimensional Reconstructor 16065 | -5/Zhirov | Warped through subspace 16126 | -5/Zhirov | Entered Proximity Caves 16126 | -4/Proximity Caves | Accompanied by 3 allies 16128 | -4/Proximity Caves | Attracted the attention of an 0b10 checkpoint 16128 | -4/Proximity Caves | Reached level 24 16142 | -4/Proximity Caves | Upgraded with Utility slot (x1) 16212 | -4/Proximity Caves | Learned location of 2 exits from Research 16213 | -4/Proximity Caves | Spotted B-86 Titan 16232 | -4/Proximity Caves | Destroyed B-86 Titan 16359 | -4/Proximity Caves | Attracted the attention of an 0b10 base 16448 | -4/Proximity Caves | Learned location of Armory (-4) 16670 | -4/Proximity Caves | Reached level 25 16858 | -4/Proximity Caves | Discovered exit to Factory (range 7) 16928 | -4/Proximity Caves | Entered Factory 16929 | -4/Factory | Loaded intel: 22 terminal locations 16994 | -4/Factory | Incoming investigation squad redirected 17102 | -4/Factory | Spotted B-86 Titan 17188 | -4/Factory | Incoming investigation squad redirected 17210 | -4/Factory | Discovered new exit (range 10) 17212 | -4/Factory | Identified exit to Extension 17216 | -4/Factory | Entered Extension 17218 | -4/Extension | Reached level 26 18094 | -4/Extension | Identified exit to Cetus 18108 | -4/Extension | Rescued A7 18224 | -4/Extension | Rescued a captive Derelict 18225 | -4/Extension | Rescued a captive Derelict 18228 | -4/Extension | Spotted B-86 Titan 18237 | -4/Extension | Spotted B-86 Titan 18242 | -4/Extension | Allies destroyed B-86 Titan 18265 | -4/Extension | Allies destroyed B-86 Titan 18466 | -4/Extension | First assault squad dispatched 18491 | -4/Extension | Incoming assault squad redirected 18631 | -4/Extension | Build established: Commander-Scout 18653 | -4/Extension | Central database locked down 18701 | -4/Extension | Discovered new exit (range 10) 18706 | -4/Extension | Identified exit to Research 18707 | -4/Extension | Entered Cetus 18707 | -4/Cetus | Accompanied by 7 allies 18712 | -4/Cetus | Spotted Cetus Guard 18712 | -4/Cetus | Spotted Cetus Guard 18717 | -4/Cetus | Spotted Cetus Guard 18717 | -4/Cetus | Spotted Cetus Guard 18739 | -4/Cetus | Allies destroyed Cetus Guard 18739 | -4/Cetus | Destroyed Cetus Guard 18754 | -4/Cetus | Destroyed Cetus Guard 18760 | -4/Cetus | Allies destroyed Cetus Guard 18791 | -4/Cetus | Reached level 27 18794 | -4/Cetus | Upgraded with Utility slot (x1) 18842 | -4/Cetus | Upgraded with Power slot (x1) 18935 | -4/Cetus | Discovered new exit (range 23) 18956 | -4/Cetus | Discovered exit to Research (range 23) 19032 | -4/Cetus | Incoming investigation squad redirected 19142 | -4/Cetus | Build established: Generator-Scout 19283 | -4/Cetus | Incoming investigation squad redirected 19374 | -4/Cetus | Spotted Cetus Guard 19374 | -4/Cetus | Spotted Cetus Guard 19374 | -4/Cetus | Spotted Cetus Guard 19374 | -4/Cetus | Spotted Cetus Guard 19375 | -4/Cetus | Enhanced Grunt warped into view, answering call for help 19375 | -4/Cetus | Discovered exit to Research (range 22) 19376 | -4/Cetus | Enhanced Grunt warped into view, answering call for help 19382 | -4/Cetus | Identified exit to Archives 19382 | -4/Cetus | Entered Archives 20044 | -4/Archives | Discovered new exit (range 22) 20090 | -4/Archives | Unable to access archive contents 20093 | -4/Archives | Unable to access archive contents 20095 | -4/Archives | Discovered exit to Research (range 17) 20097 | -4/Archives | Unable to access archive contents 20098 | -4/Archives | Discovered new exit (range 16) 20100 | -4/Archives | Unable to access archive contents 20116 | -4/Archives | Unable to access archive contents 20137 | -4/Archives | Identified exit to Hub_04(d) 20156 | -4/Archives | Entered Hub_04(d) 20303 | -4/Hub_04(d) | Discovered exit to Research (range 8) 20387 | -4/Hub_04(d) | Discovered exit to Research (range 12) 20432 | -4/Hub_04(d) | Network Hub disabled 20457 | -4/Hub_04(d) | Network Hub disabled 20483 | -4/Hub_04(d) | Central database locked down 20501 | -4/Hub_04(d) | Network Hub disabled 20505 | -4/Hub_04(d) | Spotted Lightning 20505 | -4/Hub_04(d) | Spotted Lightning 20505 | -4/Hub_04(d) | Spotted Lightning 20511 | -4/Hub_04(d) | Discovered exit to Research (range 21) 20517 | -4/Hub_04(d) | Disrupted transfer network 20531 | -4/Hub_04(d) | Spotted Lightning 20531 | -4/Hub_04(d) | Spotted Lightning 20531 | -4/Hub_04(d) | Spotted Lightning 20532 | -4/Hub_04(d) | Network Hub disabled 20537 | -4/Hub_04(d) | Entered Research 20538 | -3/Research | Identified exit to Testing 20538 | -3/Research | Identified exit to Research 20538 | -3/Research | Core integrity fell below 50% 20539 | -3/Research | Reached level 28 20579 | -3/Research | Discovered exit to Testing (range 21) 20644 | -3/Research | Fabricated I-47 Archangel? 20752 | -3/Research | Incoming investigation squad redirected 20774 | -3/Research | Garrison activated, responded to threat 20963 | -3/Research | Reached level 29 21037 | -3/Research | First assault squad dispatched 21060 | -3/Research | Entered Testing 21060 | -3/Testing | Accompanied by 11 allies 21061 | -3/Testing | Maximum security lockdown engaged 21136 | -3/Testing | Destroyed 7 combat bots 21138 | -3/Testing | Found Prototype Energy Gun 21138 | -3/Testing | Identified Hyp. EM Gauss Rifle 21154 | -3/Testing | Found Prototype Launcher 21154 | -3/Testing | Identified Z-bomb Delivery System 21291 | -3/Testing | Discovered exit to Research (range 5) 21297 | -3/Testing | Entered Research 21299 | -2/Research | Reached level 30 21340 | -2/Research | Identified exit to Quarantine 21361 | -2/Research | Garrison activated, responded to threat 21408 | -2/Research | Reached level 31 21443 | -2/Research | Core integrity fell below 50% 21480 | -2/Research | Core integrity fell below 20% 21507 | -2/Research | Destroyed 13 combat bots 21524 | -2/Research | Destroyed by H-88 Terminator with KE Penetrator Last Messages --------------- 21497_ Slammed into U-05 Engineer. 21499_ U-05 Engineer knocked back. 21501_ Imp. System Backup Module purges 1% of system corruption (5%). 21508_ Penetrated by Slug. 21508_ Slammed into K-01 Serf. 21508_ K-01 Serf destroyed. 21508_ Destabilizing: System interference. 21508_ Lrn. Sensor Array temporarily disabled. 21508_ Exp. Targeting Computer temporarily disabled. 21509_ K-01 Serf collects debris. 21514_ System corrupted: Energy discharge (-416). 21516_ Slug penetrates Door. 21517_ Imp. System Backup Module purges 1% of system corruption (4%). 21519_ U-05 Engineer builds a Door. 21524_ Slug penetrates Wall. [Achievement: 20k Club] [Achievement: 30k Club] [Achievement: 40k Club] [Achievement: Torch] [Achievement: Achiever] Map ----- +----------------------------------------------------+ | # = #??????????????????? #???????????????????? | | # #??????????????????? #???????????????????? | | # = #??????????????????? #???????????????????? | | # [ #??????????????????? #????????#??????????? | | ? ?????????????????????% #?? """#??????????? | | ###+######################%=*# """#??????????? | | !!%==%*%=%*!%=s*%[*+ R"#??????????? | | ########+##############/##=! # """#??????????? | | ?????? ???????#%==[!*#?# #???????????????????? | | ?????# #?????#=*[!=%#?# #???????????????????? | | ?????# #?????# !==!w#?# #???????????????????? | | ?????# #?????#==%%*!#?# #???????????????????? | | ?????# #?????#[=[%*%###%#???????????????????? | | ?????# #?????#=%[=!%/!*[#???????????????????? | | ?????########?????##########%#???????????????????? | | ????????????????????#/ [[ #h#???????????????????? | | ????????????????????# ! / #???????????????????? | | ????????????????????# #h#???????????????????? | | ????????????????????# ?#%#############???????? | | ????????????????????# #Y% #???????? | | ????????????????????# h#u #???????? | | ?????????????????########+##Y #######?? | | ?????????????????# # +? | | ?????????????????# # u ########? | | ?????????????????# # #???????? | | ?????????????????# /@ u #???????? | | ?????????????????# ####+##### #???????? | | ?????????????????# #? ??? #???????? | | ?????????????????######### #?? +???????? | | ?????????????????????????#! #??? #???????? | | ?????????????????????????# * #??? ##+#???????? | | ?????????????????????????# #???? #??????????? | | ?????????????????????????# = #?????#??????????? | | ?????????????????????????########????????????????? | | ?????????????????????????????????????????????????? | | ?????????????????????????????????????????????????? | | ?????????????????????????????????????????????????? | | ?????????????????????????ss??????????????????????? | | ?????????????????????????s???????????????????????? | | ?????????????????????????s??????ss???????????????? | | ???????????????????Y????????????s????????????????? | | ??????????????????????????????????s??????????????? | | ?????????????????????????????????????????????????? | | ?????????????????????????????????????????????????? | | ?????????????????????????????????????????????????? | | ?????????????????????????????????????????????????? | | ?????????????????????????????????????????????????? | | ?????????????????????????????????????????????????? | | ?????????????????????????????????????????????????? | | ?????????????????????????????????????????????????? | +----------------------------------------------------+ Best States ------------- Heat Dissipation 140 Energy Generation 104 Energy Capacity 2000 Matter Stores 400 Matter Capacity 400 Sight Range 23 Robot Scan Range 34 Terrain Scan Range 24 Terrain Scan Density 310 Power Amplification 40 Resistance: KI 5 Resistance: TH 5 Resistance: EX 5 Utility Shielding 90 Evasion (%) 62 Targeting Accuracy 36 Offensive Hacking 10 Item Schematics ----------------- Hover Unit | -10/Materials | Hacked Airjet | -9/Materials | Scanalyzed System Shield | -9/Materials | Hacked Hvy. EM Shotgun | -8/Materials | Scanalyzed Hacking Suite | -8/Materials | Scanalyzed Aerolev Unit | -8/Materials | Scanalyzed Imp. Shield Generator | -7/Factory | Scanalyzed Recalibrator | -7/Factory | Hacked Combat Drone Bay | -6/Data Miner | Free Lgt. Regenerative Plating | -6/Data Miner | Free Cmb. Gravmag System | -6/Data Miner | Free Exp. Sensor Array | -6/Data Miner | Free Exp. Transmission Jammer | -6/Data Miner | Free Exp. Targeting Computer | -6/Data Miner | Free Exp. ECM Suite | -6/Data Miner | Free Assault Drone Bay | -5/Zhirov | Free Exp. Heat Sink | -5/Zhirov | Free Exp. Optical Array | -5/Zhirov | Free Imp. Arc Thrower | -5/Zhirov | Free Cld. Airjet | -3/Research | Scanalyzed Robot Schematics ------------------ S-27 Virus | -6/Data Miner | Free G-50 Soldier | -6/Data Miner | Free G-67 Veteran | -6/Data Miner | Free L-41 Fighter | -6/Data Miner | Free P-70 Sage | -6/Data Miner | Free I-36 Angel | -6/Data Miner | Free I-47 Archangel | -6/Data Miner | Free Fabricated ------------ Recalibrator | x2 | -7/Factory Aerolev Unit | x1 | -7/Factory R-06 Scavenger | x1 | -7/Factory | Preloaded Cloaking Device | x1 | -6/Factory | Preloaded H-66 Slayer | x2 | -5/Factory | Preloaded I-47 Archangel | x1 | -3/Research Alien Tech Used ----------------- Integrated Dissipator Transdimensional Reconstructor Achievements -------------- 20k Club 30k Club 404 40k Club A New Friend Achiever Armchair Analyst Can't Touch This Help From High Places It Was An Accident, I Swear More Power To You My Command Is Your Wish Oh No You Don't! Ooh, Shiny! Party Time Preemptive Strike Prison Break Rockin' Loadout Shopping List Significant Disruption Sniper The Science Guy Torch We Are Legion Challenges ------------ None RPGLIKE | -11 -10 -10 -9 -9 -9 -8 -8 -7 -7 -7 -7 -7 -6 -6 -6 -6 -6 -5 -5 -5 -5 -5 -4 -4 -4 -4 -4 -4 -3 -3 -2 --------- Run | Scr Mat Min Mat Min Exi Min Mat Fac Low Low Zio Dee Pro Fac Low Low Dat Pro Fac Upp Upp Zhi Pro Fac Ext Cet Arc Hub Res Tes Res Levels Raised 30 | . . 1 3 2 1 . 3 4 . 1 . . 1 1 1 1 . 1 1 1 . . 2 . 1 1 . . 2 . 2 XP Earned 48386 | 3000 245 1350 5862 2698 350 1268 4579 5152 641 653 220 846 1000 1614 830 1198 152 1476 2177 798 742 152 2316 913 1482 490 146 1044 1786 853 2353 XP Spent 46500 | 1250 1475 850 4525 1100 . 2900 5675 5500 . . . 2140 . 2975 . 2600 . . 2900 200 . . 3200 . . 4300 . 395 2955 . 1560 Upgrades 86 | 3 9 2 14 1 . 3 13 5 . . . 6 . 5 . 1 . . 1 1 . . 1 . . 2 . 2 14 . 3 Power Slot 2 | . . . 1 . . . . . . . . . . . . . . . . . . . . . . 1 . . . . . Propulsion Slot 5 | 1 . . 1 1 . . 1 1 . . . . . . . . . . . . . . . . . . . . . . . Utility Slot 11 | 1 . 1 1 . . 1 1 1 . . . . . 1 . 1 . . 1 . . . 1 . . 1 . . . . . Weapon Slot 4 | . . . 2 . . 1 1 . . . . . . . . . . . . . . . . . . . . . . . . Core Integrity 22 | . . . 3 . . . 5 . . . . 2 . 2 . . . . . . . . . . . . . 1 7 . 2 Heat Dissipation 9 | . . . 4 . . . 1 . . . . 2 . 1 . . . . . . . . . . . . . . 1 . . Energy Generation 2 | . . . 1 . . . . 1 . . . . . . . . . . . . . . . . . . . . . . . Energy Storage 4 | . . . . . . . 1 . . . . . . 1 . . . . . . . . . . . . . 1 1 . . Matter Storage 2 | . . . . . . . 1 . . . . . . . . . . . . . . . . . . . . . 1 . . Mass Support 3 | . . . 1 . . . 1 . . . . . . . . . . . . . . . . . . . . . . . 1 Inventory Capacity 4 | 1 1 . . . . . . 1 . . . 1 . . . . . . . . . . . . . . . . . . . Sight Range 1 | . 1 . . . . . . . . . . . . . . . . . . . . . . . . . . . . . . Sensor Range 7 | . 7 . . . . . . . . . . . . . . . . . . . . . . . . . . . . . . Terrain Scan Density 2 | . . 1 . . . . 1 . . . . . . . . . . . . . . . . . . . . . . . . Ranged Accuracy 3 | . . . . . . 1 . 1 . . . 1 . . . . . . . . . . . . . . . . . . . KI Resistance % 1 | . . . . . . . . . . . . . . . . . . . . . . . . . . . . . 1 . . TH Resistance % 1 | . . . . . . . . . . . . . . . . . . . . . . . . . . . . . 1 . . EX Resistance % 1 | . . . . . . . . . . . . . . . . . . . . . . . . . . . . . 1 . . TH Damage % 2 | . . . . . . . . . . . . . . . . . . . . 1 . . . . . . . . 1 . . Protomatter Created 6553 | . . 35 268 274 . . 592 689 53 199 107 98 . 135 275 296 . 330 274 275 272 . 477 49 287 235 236 14 477 348 258 Integrity Restored 14402 | . . 105 582 763 . 15 419 945 157 493 258 294 . 219 825 811 . 754 689 344 723 . 1470 144 937 741 400 42 1428 454 390 Core 11989 | . . 105 582 631 . 15 322 759 145 448 150 294 . 219 825 661 . 465 547 293 555 . 1177 108 733 669 229 42 1316 309 390 Parts 2413 | . . . . 132 . . 97 186 12 45 108 . . . . 150 . 289 142 51 168 . 293 36 204 72 171 . 112 145 . Protomatter Decayed 2436 | . . . 47 39 . 54 495 358 . 31 17 67 . 28 . 23 . 124 216 157 . . 12 . 244 146 99 . . 151 128 Game ------ Seed NullArmorSword Manual? 0 Play Time 07:33:36 Cumulative 25.0 hours Start 2019.12.22 @ 23:28:29 End 2020.01.09 @ 18:38:53 Sessions 7 Manual Loads 0 Difficulty Rogue Special Mode Winter2019/RPGLIKE Game No. 7 Rogue 7 Adventurer 0 Explorer 0 Win Type - Total 0 Types 0/0/0/0/0/0/0 Lore% 40 Gallery% 19 Achievement% 32 Wizard Run 0 Options --------- ASCII 0 Keyboard 0 Movement Numpad Keybinds 0 Fullscreen 1 Font 14/SmallcapsGlow Map View 84x54 Tactical HUD 1 Map Filters NONE Filters NONE Steam 1 RUN: 92619a94-2155-46b2-a4c8-3262feb1f031